fUST/lending_fUST_20251206
["ID","MTS","AMOUNT","RATE_DAILY","PERIOD"]
[396470617,1764977457079,-500.0,0.00016986,2]
[396470618,1764977457089,-500.0,0.00016986,2]
[396470619,1764977457098,-500.0,0.00016986,2]
[396470620,1764977457108,-500.0,0.00016986,2]
[396470621,1764977457118,-500.0,0.00016986,2]
[396470622,1764977457127,-408.04364105,0.00016986,2]
[396470623,1764977457136,-500.0,0.00016986,2]
[396470624,1764977457146,-500.0,0.00016986,2]
[396470625,1764977457155,-500.0,0.00016986,2]
[396470626,1764977457164,-500.0,0.00016986,2]
[396470627,1764977457174,-500.0,0.00016986,2]
[396470628,1764977457183,-151.2698772,0.00016986,2]
[396470629,1764977457193,-1172.82,0.00016986,2]
[396470630,1764977457202,-500.0,0.00016986,2]
[396470631,1764977457214,-500.0,0.00016986,2]
[396470632,1764977457228,-500.0,0.00016986,2]
[396470633,1764977457237,-500.0,0.00016986,2]
[396470634,1764977457247,-953.97,0.00016986,2]
[396470635,1764977457257,-500.0,0.00016986,2]
[396470636,1764977457268,-500.0,0.00016986,2]
[396470637,1764977457279,-500.0,0.00016986,2]
[396470638,1764977457289,-508.31,0.00016986,2]
[396470639,1764977457298,-1281.15,0.00016986,2]
[396470640,1764977457306,-571.94,0.00016986,2]
[396470641,1764977457314,-500.0,0.00016986,2]
[396470642,1764977457323,-520.57,0.00016986,2]
[396470643,1764977457332,-500.0,0.00016986,2]
[396470644,1764977457342,-792.48,0.00016986,2]
[396470645,1764977457355,-500.0,0.00016986,2]
[396470646,1764977457369,-500.0,0.00016986,2]
[396470647,1764977457379,-1988.07,0.00016986,2]
[396470648,1764977457388,-533.6,0.00016986,2]
[396470649,1764977457398,-583.39,0.00016986,2]
[396470650,1764977457409,-500.0,0.00016986,2]
[396470651,1764977457420,-500.0,0.00016986,2]
[396470652,1764977457430,-500.0,0.00016986,2]
[396470653,1764977457444,-500.0,0.00016986,2]
[396470654,1764977457455,-500.0,0.00016986,2]
[396470655,1764977457465,-658.48,0.00016986,2]
[396470656,1764977457475,-500.0,0.00016986,2]
[396470657,1764977457485,-500.0,0.00016986,2]
[396470658,1764977457497,-713.5,0.00016986,2]
[396470660,1764977457507,-500.0,0.00016986,2]
[396470661,1764977457516,-500.0,0.00016986,2]
[396470662,1764977457526,-500.0,0.00016986,2]
[396470663,1764977457536,-500.0,0.00016986,2]
[396470665,1764977457546,-500.0,0.00016986,2]
[396470666,1764977457556,-500.0,0.00016986,2]
[396470667,1764977457566,-500.0,0.00016986,2]
[396470668,1764977457575,-500.0,0.00016986,2]
[396470669,1764977457585,-500.0,0.00016986,2]
[396470670,1764977457594,-500.0,0.00016986,2]
[396470671,1764977457603,-500.0,0.00016986,2]
[396470672,1764977457612,-500.0,0.00016986,2]
[396470673,1764977457622,-500.0,0.00016986,2]
[396470674,1764977457631,-500.0,0.00016986,2]
[396470675,1764977457641,-628.88,0.00016986,2]
[396470676,1764977457650,-500.0,0.00016986,2]
[396470677,1764977457659,-500.0,0.00016986,2]
[396470678,1764977457668,-500.0,0.00016986,2]
[396470679,1764977457677,-349.53707954,0.00016986,2]
[396470680,1764977457686,-500.0,0.00016986,2]
[396470681,1764977457696,-500.0,0.00016986,2]
[396470682,1764977457707,-500.0,0.00016986,2]
[396470683,1764977457717,-500.0,0.00016986,2]
[396470684,1764977457727,-500.0,0.00016986,2]
[396470685,1764977457738,-500.0,0.00016986,2]
[396470686,1764977457747,-500.0,0.00016986,2]
[396470687,1764977457757,-500.0,0.00016986,2]
[396470688,1764977457768,-500.0,0.00016986,2]
[396470689,1764977457777,-500.0,0.00016986,2]
[396470690,1764977457787,-529.9,0.00016986,2]
[396470691,1764977457797,-500.0,0.00016986,2]
[396470692,1764977457806,-500.0,0.00016986,2]
[396470693,1764977457816,-500.0,0.00016986,2]
[396470694,1764977457825,-500.0,0.00016986,2]
[396470695,1764977457835,-500.0,0.00016986,2]
[396470696,1764977457844,-500.0,0.00016986,2]
[396470697,1764977457854,-500.0,0.00016986,2]
[396470698,1764977457863,-1146.35,0.00016986,2]
[396470699,1764977457873,-500.0,0.00016986,2]
[396470700,1764977457883,-500.0,0.00016986,2]
[396470701,1764977457892,-500.0,0.00016986,2]
[396470702,1764977457901,-500.0,0.00016986,2]
[396470703,1764977457911,-552.82,0.00016986,2]
[396470704,1764977457920,-500.0,0.00016986,2]
[396470705,1764977457930,-500.0,0.00016986,2]
[396470706,1764977457939,-500.0,0.00016986,2]
[396470707,1764977457949,-500.0,0.00016986,2]
[396470708,1764977457958,-500.0,0.00016986,2]
[396470709,1764977457969,-898.65,0.00016986,2]
[396470710,1764977457978,-528.9821012,0.00016986,2]
[396470711,1764977457988,-719.36,0.00016986,2]
[396470712,1764977457998,-500.0,0.00016986,2]
[396470713,1764977458007,-500.0,0.00016986,2]
[396470714,1764977458016,-500.0,0.00016986,2]
[396470715,1764977458026,-500.0,0.00016986,2]
[396470716,1764977458035,-645.08,0.00016986,2]
[396470717,1764977458044,-500.0,0.00016986,2]
[396470718,1764977458054,-500.0,0.00016986,2]
[396470719,1764977458063,-1057.16,0.00016986,2]
[396470720,1764977458073,-500.0,0.00016986,2]
[396470721,1764977458082,-216.87724864,0.00016986,2]
[396470722,1764977458092,-500.0,0.00016986,2]
[396470723,1764977458101,-500.0,0.00016986,2]
[396470724,1764977458111,-500.0,0.00016986,2]
[396470725,1764977458120,-500.0,0.00016986,2]
[396470726,1764977458129,-500.0,0.00016986,2]
[396470727,1764977458138,-500.0,0.00016986,2]
[396470728,1764977458147,-500.0,0.00016986,2]
[396470729,1764977458157,-500.0,0.00016986,2]
[396470730,1764977458166,-612.32,0.00016986,2]
[396470731,1764977458175,-699.98,0.00016986,2]
[396470732,1764977458184,-500.0,0.00016986,2]
[396470733,1764977458194,-962.64,0.00016986,2]
[396470734,1764977458203,-607.73,0.00016986,2]
[396470735,1764977458213,-1235.18,0.00016986,2]
[396470736,1764977458223,-1568.89,0.00016986,2]
[396470737,1764977458233,-500.0,0.00016986,2]
[396470738,1764977458242,-500.0,0.00016986,2]
[396470739,1764977458252,-500.0,0.00016986,2]
[396470740,1764977458262,-500.0,0.00016986,2]
[396470741,1764977458271,-2620.44,0.00016986,2]
[396470742,1764977458282,-595.35,0.00016986,2]
[396470743,1764977458294,-500.0,0.00016986,2]
[396470744,1764977458303,-651.44,0.00016986,2]
[396470745,1764977458312,-500.0,0.00016986,2]
[396470746,1764977458322,-500.0,0.00016986,2]
[396470747,1764977458331,-500.0,0.00016986,2]
[396470748,1764977458340,-500.0,0.00016986,2]
[396470749,1764977458350,-500.0,0.00016986,2]
[396470750,1764977458361,-642.81,0.00016986,2]
[396470751,1764977458375,-500.0,0.00016986,2]
[396470752,1764977458385,-257.49414484,0.00016986,2]
[396470753,1764977458394,-500.0,0.00016986,2]
[396470754,1764977458404,-500.0,0.00016986,2]
[396470755,1764977458414,-618.0,0.00016986,2]
[396470756,1764977458423,-1515.57,0.00016986,2]
[396470757,1764977458432,-746.75,0.00016986,2]
[396470758,1764977458442,-500.0,0.00016986,2]
[396470759,1764977458450,-500.0,0.00016986,2]
[396470760,1764977458459,-809.79,0.00016986,2]
[396470761,1764977458468,-500.0,0.00016986,2]
[396470762,1764977458477,-1222.96,0.00016986,2]
[396470763,1764977458486,-500.0,0.00016986,2]
[396470764,1764977458495,-500.0,0.00016986,2]
[396470765,1764977458504,-500.0,0.00016986,2]
[396470766,1764977458513,-500.0,0.00016986,2]
[396470767,1764977458524,-763.27,0.00016986,2]
[396470768,1764977458533,-500.0,0.00016986,2]
[396470769,1764977458542,-500.0,0.00016986,2]
[396470770,1764977458551,-500.0,0.00016986,2]
[396470771,1764977458560,-500.0,0.00016986,2]
[396470772,1764977458570,-500.0,0.00016986,2]
[396470773,1764977458579,-1284.13,0.00016986,2]
[396470774,1764977458588,-500.0,0.00016986,2]
[396470775,1764977458597,-500.0,0.00016986,2]
[396470776,1764977458606,-500.0,0.00016986,2]
[396470777,1764977458616,-551.04077835,0.00016986,2]
[396470778,1764977458624,-500.0,0.00016986,2]
[396470779,1764977458634,-505.13,0.00016986,2]
[396470780,1764977458643,-500.0,0.00016986,2]
[396470781,1764977458651,-500.0,0.00016986,2]
[396470782,1764977458661,-540.03,0.00016986,2]
[396470783,1764977458669,-500.0,0.00016986,2]
[396470784,1764977458678,-2502.52,0.00016986,2]
[396470785,1764977458687,-500.0,0.00016986,2]
[396470786,1764977458703,-500.0,0.00016986,2]
[396470787,1764977458725,-500.0,0.00016986,2]
[396470788,1764977458736,-500.0,0.00016986,2]
[396470789,1764977458745,-1094.94,0.00016986,2]
[396470790,1764977458754,-500.0,0.00016986,2]
[396470791,1764977458763,-500.0,0.00016986,2]
[396470792,1764977458774,-500.0,0.00016986,2]
[396470793,1764977458783,-500.0,0.00016986,2]
[396470794,1764977458791,-500.0,0.00016986,2]
[396470795,1764977458800,-500.0,0.00016986,2]
[396470796,1764977458809,-500.0,0.00016986,2]
[396470797,1764977458818,-507.38,0.00016986,2]
[396470798,1764977458827,-2778.71,0.00016986,2]
[396470799,1764977458836,-542.06,0.00016986,2]
[396470800,1764977458845,-500.0,0.00016986,2]
[396470801,1764977458854,-2162.68,0.00016986,2]
[396470802,1764977458864,-1027.42,0.00016986,2]
[396470803,1764977458873,-872.12,0.00016986,2]
[396470804,1764977458883,-500.0,0.00016986,2]
[396470805,1764977458892,-500.0,0.00016986,2]
[396470806,1764977458901,-500.0,0.00016986,2]
[396470807,1764977458910,-850.89,0.00016986,2]
[396470808,1764977458919,-600.10955708,0.00016986,2]
[396470809,1764977458928,-500.0,0.00016986,2]
[396470810,1764977458937,-500.0,0.00016986,2]
[396470811,1764977458946,-500.0,0.00016986,2]
[396470812,1764977458955,-500.0,0.00016986,2]
[396470813,1764977458964,-500.0,0.00016986,2]
[396470814,1764977458973,-500.0,0.00016986,2]
[396470815,1764977458982,-1115.05,0.00016986,2]
[396470816,1764977458991,-442.55358871,0.00016986,2]
[396470817,1764977459000,-866.93,0.00016986,2]
[396470818,1764977459009,-500.0,0.00016986,2]
[396470819,1764977459018,-804.44,0.00016986,2]
[396470820,1764977459027,-716.42,0.00016986,2]
[396470821,1764977459036,-500.0,0.00016986,2]
[396470822,1764977459045,-1046.92,0.00016986,2]
[396470823,1764977459053,-500.0,0.00016986,2]
[396470824,1764977459062,-1364.25,0.00016986,2]
[396470825,1764977459071,-500.0,0.00016986,2]
[396470826,1764977459080,-500.0,0.00016986,2]
[396470827,1764977459088,-500.0,0.00016986,2]
[396470828,1764977459097,-500.0,0.00016986,2]
[396470829,1764977459106,-2752.35,0.00016986,2]
[396470830,1764977459115,-500.0,0.00016986,2]
[396470831,1764977459124,-1342.26,0.00016986,2]
[396470832,1764977459132,-1890.13,0.00016986,2]
[396470833,1764977459141,-500.0,0.00016986,2]
[396470834,1764977459150,-3523.87,0.00016986,2]
[396470835,1764977459159,-500.0,0.00016986,2]
[396470836,1764977459168,-719.4,0.00016986,2]
[396470837,1764977459177,-500.0,0.00016986,2]
[396470838,1764977459186,-989.71,0.00016986,2]
[396470839,1764977459195,-500.0,0.00016986,2]
[396470840,1764977459204,-500.0,0.00016986,2]
[396470841,1764977459212,-500.0,0.00016986,2]
[396470842,1764977459221,-716.51,0.00016986,2]
[396470843,1764977459230,-500.0,0.00016986,2]
[396470844,1764977459238,-1750.43,0.00016986,2]
[396470845,1764977459247,-500.0,0.00016986,2]
[396470846,1764977459256,-500.0,0.00016986,2]
[396470847,1764977459265,-953.7,0.00016986,2]
[396470848,1764977459274,-500.0,0.00016986,2]
[396470849,1764977459283,-500.0,0.00016986,2]
[396470850,1764977459292,-2595.03,0.00016986,2]
[396470851,1764977459302,-616.79,0.00016986,2]
[396470852,1764977459311,-500.0,0.00016986,2]
[396470853,1764977459319,-500.0,0.00016986,2]
[396470854,1764977459328,-500.0,0.00016986,2]
[396470855,1764977459337,-217.26637531,0.00016986,2]
[396470856,1764977459346,-500.0,0.00016986,2]
[396470857,1764977459355,-500.0,0.00016986,2]
[396470858,1764977459367,-500.0,0.00016986,2]
[396470859,1764977459376,-500.0,0.00016986,2]
[396470860,1764977459385,-500.0,0.00016986,2]
[396470861,1764977459394,-500.0,0.00016986,2]
[396470862,1764977459403,-500.0,0.00016986,2]
[396470863,1764977459413,-500.0,0.00016986,2]
[396470864,1764977459422,-500.0,0.00016986,2]
[396470865,1764977459430,-500.0,0.00016986,2]
[396470866,1764977459439,-774.24,0.00016986,2]
[396470867,1764977459451,-500.0,0.00016986,2]
[396470868,1764977459460,-500.0,0.00016986,2]
[396470869,1764977459470,-4362.29,0.00016986,2]
[396470870,1764977459479,-650.21,0.00016986,2]
[396470871,1764977459490,-1268.15,0.00016986,2]
[396470872,1764977459499,-7825.74,0.00016986,2]
[396470873,1764977459508,-500.0,0.00016986,2]
[396470874,1764977459518,-1806.52,0.00016986,2]
[396470875,1764977459527,-521.3,0.00016986,2]
[396470876,1764977459536,-796.27,0.00016986,2]
[396470877,1764977459545,-1208.16,0.00016986,2]
[396470878,1764977459555,-832.46,0.00016986,2]
[396470879,1764977459565,-500.0,0.00016986,2]
[396470880,1764977459575,-701.28,0.00016986,2]
[396470881,1764977459584,-582.61,0.00016986,2]
[396470882,1764977459594,-500.0,0.00016986,2]
[396470883,1764977459603,-500.0,0.00016986,2]
[396470884,1764977459613,-500.0,0.00016986,2]
[396470885,1764977459622,-500.0,0.00016986,2]
[396470886,1764977459631,-500.0,0.00016986,2]
[396470887,1764977459640,-500.0,0.00016986,2]
[396470888,1764977459649,-1147.42,0.00016986,2]
[396470889,1764977459658,-1072.16,0.00016986,2]
[396470890,1764977459670,-500.0,0.00016986,2]
[396470891,1764977459679,-734.18,0.00016986,2]
[396470892,1764977459688,-6699.51,0.00016986,2]
[396470893,1764977459697,-500.0,0.00016986,2]
[396470894,1764977459706,-500.0,0.00016986,2]
[396470895,1764977459715,-2680.06,0.00016986,2]
[396470896,1764977459724,-500.0,0.00016986,2]
[396470898,1764977459733,-500.0,0.00016986,2]
[396470899,1764977459742,-500.0,0.00016986,2]
[396470900,1764977459752,-747.01,0.00016986,2]
[396470901,1764977459762,-500.0,0.00016986,2]
[396470902,1764977459772,-500.0,0.00016986,2]
[396470903,1764977459781,-500.0,0.00016986,2]
[396470904,1764977459791,-500.0,0.00016986,2]
[396470905,1764977459800,-500.0,0.00016986,2]
[396470906,1764977459810,-979.82,0.00016986,2]
[396470907,1764977459819,-500.0,0.00016986,2]
[396470908,1764977459829,-4242.28,0.00016986,2]
[396470909,1764977459839,-928.92,0.00016986,2]
[396470910,1764977459848,-500.0,0.00016986,2]
[396470911,1764977459858,-2743.39,0.00016986,2]
[396470912,1764977459868,-500.0,0.00016986,2]
[396470913,1764977459878,-500.0,0.00016986,2]
[396470914,1764977459888,-500.0,0.00016986,2]
[396470915,1764977459897,-1068.24,0.00016986,2]
[396470916,1764977459907,-850.22,0.00016986,2]
[396470917,1764977459917,-500.0,0.00016986,2]
[396470918,1764977459927,-500.0,0.00016986,2]
[396470919,1764977459936,-626.12,0.00016986,2]
[396470920,1764977459946,-1958.94,0.00016986,2]
[396470921,1764977459956,-500.0,0.00016986,2]
[396470922,1764977459966,-584.83,0.00016986,2]
[396470923,1764977459975,-500.0,0.00016986,2]
[396470924,1764977459986,-744.32,0.00016986,2]
[396470925,1764977459997,-500.0,0.00016986,2]
[396470926,1764977460008,-36.83291449,0.00016986,2]
[396470938,1764978631947,-300.0,0.00012471,2]
[396470939,1764978631957,-252.0,0.00012471,2]
[396470940,1764978631967,-756.0,0.00012471,2]
[396470941,1764978631977,-500.0,0.00012472,2]
[396470942,1764978631986,-294.54164202,0.00012472,2]
[396470943,1764978631996,-500.0,0.00012472,2]
[396470944,1764978632007,-500.0,0.00012472,2]
[396470945,1764978632016,-287.16772196,0.00012472,2]
[396470946,1764978632026,-500.0,0.00012472,2]
[396470947,1764978632036,-500.0,0.00012472,2]
[396470948,1764978632045,-486.78598137,0.00012472,2]
[396470949,1764978632055,-163.66616972,0.00012472,2]
[396470950,1764978632064,-148004.83353055,0.00012473,2]
[396470951,1764978632076,-3812.80838128,0.00012473,2]
[396471003,1764978638049,-30449.60433155,0.00012473,2]
[396471004,1764978638089,-2514.17811519,0.00012473,2]
[396471604,1764978646103,-24836.75431378,0.00012473,2]
[396471610,1764978646158,-15266.55802791,0.00012473,2]
[396473796,1764978693476,251.0,0.000211,120]
[396473806,1764979832128,-249.0,0.00012151,2]
[396473807,1764979832138,-175.63284632,0.00012228,2]
[396473808,1764979832147,-203.12133939,0.00012324,2]
[396473809,1764979832167,-2133.90754278,0.00012324,2]
[396473810,1764979832178,-667.09324036,0.00012324,2]
[396473811,1764979832189,-300.0,0.00012327,2]
[396473812,1764979832199,-500.0,0.00012328,2]
[396473813,1764979832208,-500.0,0.00012328,2]
[396473814,1764979832217,-500.0,0.00012328,2]
[396473815,1764979832227,-500.0,0.00012328,2]
[396473816,1764979832236,-430.0,0.00012328,2]
[396473817,1764979832246,-500.0,0.00012328,2]
[396473818,1764979832255,-500.0,0.00012328,2]
[396473819,1764979832265,-500.0,0.00012328,2]
[396473820,1764979832274,-500.0,0.00012328,2]
[396473821,1764979832283,-500.0,0.00012328,2]
[396473822,1764979832292,-294.45457439,0.00012328,2]
[396473913,1764979838293,-205.54542561,0.00012328,2]
[396473915,1764979838303,-500.0,0.00012328,2]
[396473917,1764979838312,-430.0,0.00012328,2]
[396473919,1764979838322,-500.0,0.00012328,2]
[396473921,1764979838331,-448.88401185,0.00012328,2]
[396473923,1764979838342,-51.11598815,0.00012328,2]
[396473925,1764979838351,-500.0,0.00012328,2]
[396473927,1764979838361,-500.0,0.00012328,2]
[396473929,1764979838370,-500.0,0.00012328,2]
[396473931,1764979838380,-645.0,0.00012328,2]
[396473933,1764979838390,-500.0,0.00012328,2]
[396473935,1764979838399,-1120.0,0.00012328,2]
[396473937,1764979838408,-2813.49,0.00012329,2]
[396473939,1764979838417,-2344.57,0.00012329,2]
[396473941,1764979838427,-1953.81,0.00012329,2]
[396473943,1764979838435,-1628.17,0.00012329,2]
[396473945,1764979838445,-1356.81,0.00012329,2]
[396473947,1764979838454,-1130.68,0.00012329,2]
[396473949,1764979838464,-942.23,0.00012329,2]
[396473951,1764979838473,-785.19,0.00012329,2]
[396473953,1764979838483,-13527.55127432,0.00012365,2]
[396473955,1764979838492,-151.0,0.00012365,2]
[396473979,1764979838697,-151.0,0.00012365,2]
[396473981,1764979838719,-151.0,0.00012365,2]
[396473983,1764979838728,-151.0,0.00012365,2]
[396473985,1764979838737,-151.0,0.00012365,2]
[396473987,1764979838747,-151.0,0.00012365,2]
[396473989,1764979838757,-151.0,0.00012365,2]
[396473991,1764979838770,-151.0,0.00012365,2]
[396473993,1764979838779,-151.0,0.00012365,2]
[396473995,1764979838789,-151.0,0.00012365,2]
[396473997,1764979838798,-151.0,0.00012365,2]
[396473999,1764979838808,-151.0,0.00012365,2]
[396474001,1764979838816,-151.0,0.00012365,2]
[396474003,1764979838826,-151.0,0.00012365,2]
[396474005,1764979838835,-151.0,0.00012365,2]
[396474007,1764979838846,-151.0,0.00012365,2]
[396474009,1764979838855,-151.0,0.00012365,2]
[396474011,1764979838865,-151.0,0.00012365,2]
[396474013,1764979838874,-151.0,0.00012365,2]
[396474015,1764979838884,-151.0,0.00012365,2]
[396474017,1764979838894,-206.17914942,0.00012372,2]
[396474019,1764979838904,-500.0,0.00012372,2]
[396474021,1764979838914,-415.33347017,0.00012372,2]
[396474023,1764979838924,-500.0,0.00012372,2]
[396474025,1764979838934,-500.0,0.00012372,2]
[396474027,1764979838943,-890000.0,0.00012373,2]
[396474029,1764979838953,-6101.393133,0.00012472,2]
[396474031,1764979838962,-250.0,0.00012472,2]
[396474033,1764979838972,-500.0,0.00012472,2]
[396474036,1764979838982,-151.0,0.000125,2]
[396474038,1764979838991,-151.0,0.000125,2]
[396474039,1764979839001,-151.0,0.000127,2]
[396474042,1764979839011,-500.0,0.00012746,2]
[396474044,1764979839020,-151.0,0.000128,2]
[396474046,1764979839031,-151.0,0.000128,2]
[396474048,1764979839040,-151.0,0.000128,2]
[396474050,1764979839049,-300.0,0.00012823,2]
[396474052,1764979839059,-300.0,0.00012823,2]
[396474054,1764979839068,-300.0,0.00012823,2]
[396474056,1764979839078,-300.0,0.00012823,2]
[396474058,1764979839088,-300.0,0.00012823,2]
[396474060,1764979839098,-300.0,0.00012823,2]
[396474062,1764979839108,-300.0,0.00012823,2]
[396474064,1764979839118,-300.0,0.00012823,2]
[396474066,1764979839128,-300.0,0.00012823,2]
[396474068,1764979839138,-300.0,0.00012823,2]
[396474070,1764979839148,-300.0,0.00012823,2]
[396474072,1764979839158,-300.0,0.00012823,2]
[396474074,1764979839170,-300.0,0.00012823,2]
[396474076,1764979839180,-300.0,0.00012823,2]
[396474078,1764979839189,-300.0,0.00012823,2]
[396474080,1764979839199,-600.0,0.00012823,2]
[396474082,1764979839208,-151.0,0.000129,2]
[396474084,1764979839219,-151.0,0.000129,2]
[396474086,1764979839228,-15763.55314571,0.00012912,2]
[396474088,1764979839238,-45193.9773487,0.00012958,2]
[396474090,1764979839248,-151.0,0.00013,2]
[396474093,1764979839258,-500.0,0.0001302,2]
[396474095,1764979839267,-151.0,0.000132,2]
[396474097,1764979839277,-151.0,0.000132,2]
[396474099,1764979839286,-500.0,0.00013273,2]
[396474100,1764979839295,-500.82121113,0.00013273,2]
[396474102,1764979839305,-500.0,0.00013273,2]
[396474105,1764979839315,-502.24748419,0.00013273,2]
[396474107,1764979839324,-500.0,0.00013273,2]
[396474109,1764979839336,-278.41003685,0.00013273,2]
[396474111,1764979839345,-501.20506811,0.00013273,2]
[396474113,1764979839355,-500.0,0.00013273,2]
[396474115,1764979839364,-195.53635732,0.00013273,2]
[396474117,1764979839373,-158.07140597,0.00013273,2]
[396474119,1764979839382,-648.64486055,0.00013273,2]
[396474121,1764979839392,-500.0,0.00013273,2]
[396474123,1764979839402,-496.21649743,0.00013273,2]
[396474125,1764979839412,-500.0,0.00013273,2]
[396474127,1764979839422,-500.0,0.00013273,2]
[396474129,1764979839431,-500.0,0.00013273,2]
[396474131,1764979839441,-500.0,0.00013273,2]
[396474133,1764979839451,-166.91687423,0.00013273,2]
[396474135,1764979839460,-500.0,0.00013273,2]
[396474137,1764979839469,-500.0,0.00013273,2]
[396474139,1764979839479,-500.0,0.00013273,2]
[396474141,1764979839489,-500.0,0.00013273,2]
[396474143,1764979839497,-500.0,0.00013273,2]
[396474145,1764979839507,-500.0,0.00013273,2]
[396474147,1764979839516,-500.0,0.00013273,2]
[396474149,1764979839526,-500.0,0.00013273,2]
[396474151,1764979839535,-500.0,0.00013273,2]
[396474153,1764979839544,-500.0,0.00013273,2]
[396474155,1764979839554,-448.20000022,0.00013273,2]
[396474157,1764979839563,-163.57058431,0.00013273,2]
[396474159,1764979839572,-500.0,0.00013273,2]
[396474161,1764979839581,-500.0,0.00013273,2]
[396474163,1764979839590,-500.0,0.00013273,2]
[396474165,1764979839599,-500.0,0.00013273,2]
[396474167,1764979839609,-500.0,0.00013273,2]
[396474169,1764979839618,-500.22543398,0.00013273,2]
[396474171,1764979839631,-500.0,0.00013273,2]
[396474173,1764979839640,-160.15999169,0.00013273,2]
[396474175,1764979839649,-500.0,0.00013273,2]
[396474177,1764979839659,-160.15906622,0.00013273,2]
[396474179,1764979839670,-500.0,0.00013273,2]
[396474181,1764979839680,-231.64708768,0.00013273,2]
[396474183,1764979839689,-383.82377771,0.00013273,2]
[396474185,1764979839699,-500.0,0.00013273,2]
[396474187,1764979839709,-500.0,0.00013273,2]
[396474189,1764979839718,-500.0,0.00013273,2]
[396474191,1764979839727,-184.83912422,0.00013273,2]
[396474193,1764979839737,-500.0,0.00013273,2]
[396474195,1764979839746,-500.0,0.00013273,2]
[396474196,1764979839756,-500.0,0.00013273,2]
[396474197,1764979839765,-500.0,0.00013273,2]
[396474198,1764979839775,-500.0,0.00013273,2]
[396474199,1764979839784,-500.0,0.00013273,2]
[396474200,1764979839794,-500.72273231,0.00013273,2]
[396474201,1764979839803,-500.0,0.00013273,2]
[396474203,1764979839813,-500.0,0.00013273,2]
[396474205,1764979839822,-500.0,0.00013273,2]
[396474207,1764979839832,-500.0,0.00013273,2]
[396474208,1764979839841,-204.41235736,0.00013273,2]
[396474209,1764979839850,-500.0,0.00013273,2]
[396474210,1764979839859,-500.0,0.00013273,2]
[396474211,1764979839868,-500.0,0.00013294,2]
[396474212,1764979839878,-213.18,0.000133,2]
[396474213,1764979839887,-151.0,0.000134,2]
[396474214,1764979839897,-151.0,0.000135,2]
[396474215,1764979839906,-420.0,0.00013528,2]
[396474216,1764979839916,-500.0,0.00013568,2]
[396474217,1764979839925,-151.0,0.000136,2]
[396474218,1764979839935,-1227.59057403,0.00013624,2]
[396474219,1764979839944,-300.0,0.00013673,2]
[396474220,1764979839953,-1000.0,0.00013698,2]
[396474221,1764979839962,-1000.0,0.00013698,2]
[396474222,1764979839972,-1000.0,0.00013698,2]
[396474223,1764979839981,-1000.0,0.00013698,2]
[396474224,1764979839990,-1000.0,0.00013698,2]
[396474225,1764979839999,-1000.0,0.00013698,2]